{"text_format":"1","workbook":"xlsx","n_sheets":2,"sheets":["Simulation Indemnités","TUTOO"],"not_rendered":{"charts":0,"images":2,"macros":1,"external_links":0,"defined_names":24,"comments":0,"pivot_tables":0},"unopened":[],"bounds":{"document_bytes":16777216,"sheet_cells":100000,"rows_first":2000,"rows_last":500,"rows_between":2000,"halvings":0,"cell_chars":16384,"cell_head_chars":4096},"cells_cut":0,"cells_raw":0,"read":"whole","date_system":"1900"}

{"sheet":"Simulation Indemnités","index":0,"n_rows":55,"n_cols":8,"rows_kept":55,"cut":false,"hidden":false,"merged":[[44,0,44,7],[41,4,41,7],[7,0,7,2],[41,0,41,2],[43,5,43,7],[43,0,43,3],[12,0,12,1],[33,0,33,3],[20,0,20,7],[19,0,19,7],[22,0,22,1],[23,0,23,1],[24,0,24,1],[21,5,21,7],[22,5,22,6],[23,5,23,6],[16,0,16,2]]}
[]
[null,null,null,"Conçu par Cécile Dary"]
[]
[]
["Laissez-vous guider par les pastilles                   pour remplir votre déclaration sur AMELI.PRO (voir le modèle sur la feuille2)"]
["Après avoir rempli les informations, cliquez sur le Bouton en bas du document pour découvrir votre déclaration comme sur AMELI.PRO"]
[]
["Simulation pour la Période du :",null,null,"2020-03-16","au : ","2020-04-30",null,{"$f":"_xlfn.DAYS($F$8,$D$8)","v":45}]
[]
[]
[]
[]
["Honoraires Pour Actes :",null,254605,null,null,"ED :",102805]
[]
[null,"DE :",0,null,null,"Autres :",13300]
[]
["Honoraire Sans Dépassement (HSD) :      x",null,null,{"$f":"C13-G13-C15-G15","v":138500}]
[]
["Cochez la case si vous êtes Jeune Installé (Installé depuis moins de 12 mois)   :",null,null,null,null,false,{"$f":"IF(OR(HSD_JI_DEC=0,HSD_JI_DEC=\"\"),IF(OR(HSD_JI_JAN=0,HSD_JI_JAN=\"\"),HSD_JI_FEV*12,(HSD_JI_FEV+HSD_JI_JAN)*6),(HSD_JI_FEV+HSD_JI_JAN+HSD_JI_DEC)*4)","v":0},{"$f":"IF(OR(HSD_JI_DEC=0,HSD_JI_DEC=\"\"),IF(OR(HSD_JI_JAN=0,HSD_JI_JAN=\"\"),ED_JI_FEV*12,(ED_JI_FEV+ED_JI_JAN)*6),(ED_JI_FEV+ED_JI_JAN+ED_JI_DEC)*4)","v":0}]
["Inscrivez ci-dessous vos Honoraires pour les mois demandés tels qu'indiqués sur vos Relevés SNIR mensuels"]
["(laissez la case vide si vous n'avez pas perçu d'Honoraires)"]
[null,null,"Décembre 19 :","Janvier 20 :","Février 20 :","A REMPLIR SUR AMELI.PRO"]
["Honoraires Pour Actes",null,null,null,null,"Honoraire Sans Dépassement (HSD)   x",null,{"$f":"HSD_JI","v":0}]
["ED",null,null,null,null,"ED     x",null,{"$f":"ED_JI","v":0}]
["DE + Autres"]
[null,null,{"$f":"C23-(C24+C25)","v":0},{"$f":"D23-(D24+D25)","v":0},{"$f":"E23-(E24+E25)","v":0}]
[null,null,{"$f":"IF(C24>8650,8650,C24)","v":0},{"$f":"IF(D24>8650,8650,D24)","v":0},{"$f":"IF(E24>8650,8650,E24)","v":0}]
[]
[]
["Honoraires Sans Dépassements :",null,null,1254,null,null,{"$f":"IF(($D$32/NB_Jours)>P_JOURNALIER,P_JOURNALIER*NB_Jours,$D$32)+$D$30","v":1677}]
[null,null,null,null,null,null,{"$f":"8650/30","v":288.33333333333331}]
["Honoraires à Entente Directe : ",null,null,423]
[]
["Aides Perçues pendant la Crise (pour la période donnée) :"]
["Chômage Partiel :",null,null,500]
["Indemnité Journalières :",null,null,0]
["Fond de solidarité :",null,null,0]
[]
[]
[]
[]
["Calcul de l'indemnité estimée :",null,null,{"$f":"IFERROR(ROUND((H_REF-H_CRISE)*Taux-($D$35+$D$36+$D$37),0),\"\")","v":11778},"Ce montant est indicatif. Il dépendra à la CNAM de déterminer plus précisément votre indemnité, avec quelques légères variations possibles"]
[]
["Vous pouvez en percevoir immédiatement 80 % soit :",null,null,null,{"$f":"IFERROR(D42*0.8,\"\")","v":9422.4},"Avance maximum lors du premier versement"]
[]
[]
[]
["L'Honoraire Sans Dépassement de Référence est :",null,null,null,{"$f":"IF(Jeune_Installe=FALSE,($C$13-($C$15+$G$13+$G$15))*NB_Jours/360,HSD_JI*NB_Jours/360)","v":17312.5},{"$f":"HSD+ED","v":30163.125}]
["L'Honoraire Entente Directe de Référence est :",null,null,null,{"$f":"IF(Jeune_Installe=FALSE,IF($G$13>103800,103800*NB_Jours/360,$G$13*NB_Jours/360),ED_JI*NB_Jours/360)","v":12850.625}]
["Le taux de Charges Fixes vous concernant est estimé à :",null,null,null,{"$f":"IFERROR(IF($D$30/HSD>0.6,0.476,IF(AND($D$30/HSD<=0.6,$D$30/HSD>0.3),0.446,IF($D$30/HSD<=0.3,0.431,0)))+IF(Jeune_Installe=TRUE,0.5,0),0)","v":0.43099999999999999}]
[]
[]
[]
[]
[null,"Attention les calculs automatiques pour votre déclaration ne fonctionnent que sur Excel"]

{"sheet":"TUTOO","index":1,"n_rows":6,"n_cols":1,"rows_kept":6,"cut":false,"hidden":false,"merged":[]}
[]
[]
[{"$f":"IF(Jeune_Installe=TRUE,HSD_JI,'Simulation Indemnités'!$D$17)","v":138500}]
[{"$f":"'Simulation Indemnités'!$D$30","v":1254}]
[{"$f":"IF(Jeune_Installe=TRUE,ED_JI,'Simulation Indemnités'!$G$13)","v":102805}]
[{"$f":"'Simulation Indemnités'!$D$32","v":423}]